bitfinex-derivatives/quotes_BTCF0:USTF0_20250828
["timestamp","ask_amount","ask_price","bid_price","bid_amount"]
[1756409202414,1.46091154,112260.0,112250.0,0.0890784]
[1756409203818,0.1290585,112250.0,112240.0,0.10683642]
[1756409204120,0.60917212,112250.0,112240.0,0.12204642]
[1756409205019,0.60917212,112250.0,112240.0,0.12304642]
[1756409205916,1.43081212,112250.0,112240.0,0.12304642]
[1756409206221,1.50288919,112250.0,112240.0,0.14587642]
[1756409206413,1.02277557,112250.0,112240.0,0.14587642]
[1756409206618,1.02277557,112250.0,112240.0,0.14487642]
[1756409207727,0.20113557,112250.0,112240.0,0.14487642]
[1756409208020,1.02281557,112250.0,112240.0,0.14487642]
[1756409209428,1.02281557,112250.0,112240.0,0.12204642]
[1756409209618,0.20113557,112250.0,112240.0,0.14487642]
[1756409209819,1.02277557,112250.0,112240.0,0.14487642]
[1756409212131,1.02277557,112250.0,112240.0,0.12204642]
[1756409212423,1.50288919,112250.0,112240.0,0.14487642]
[1756409212617,1.02277557,112250.0,112240.0,0.12204642]
[1756409213828,1.02277557,112250.0,112240.0,0.14487642]
[1756409214029,1.02281557,112250.0,112240.0,0.14487642]
[1756409214629,1.02277557,112250.0,112240.0,0.62499004]
[1756409214931,0.93369707,112250.0,112240.0,0.62499004]
[1756409215123,1.02277547,112250.0,112240.0,0.62499004]
[1756409215626,1.02277547,112250.0,112240.0,0.14487642]
[1756409215832,1.02277547,112250.0,112240.0,0.12204642]
[1756409216232,1.02277547,112250.0,112240.0,0.14487642]
[1756409216729,0.20113547,112250.0,112240.0,0.14487642]
[1756409216928,1.02277547,112250.0,112240.0,0.14487642]
[1756409218029,1.02277547,112250.0,112240.0,0.1271216]
[1756409220132,0.20113547,112250.0,112240.0,0.1271216]
[1756409220326,1.02277547,112250.0,112240.0,0.1271216]
[1756409220734,0.20113547,112250.0,112240.0,0.1271216]
[1756409221028,0.89371707,112250.0,112240.0,0.85723522]
[1756409221232,0.07207707,112250.0,112240.0,0.85723522]
[1756409221432,0.90881707,112250.0,112240.0,0.85723522]
[1756409221635,0.93341707,112250.0,112240.0,0.85723522]
[1756409222337,0.93241707,112250.0,112240.0,0.85723522]
[1756409222826,0.93241707,112250.0,112240.0,0.85823522]
[1756409223834,0.86134,112250.0,112240.0,0.85823522]
[1756409226939,0.86134,112250.0,112240.0,0.85723522]
[1756409227432,0.86134,112250.0,112240.0,0.3771216]
[1756409227740,0.86234,112250.0,112240.0,0.85723522]
[1756409229333,0.0407,112250.0,112240.0,0.85723522]
[1756409229527,0.8623,112250.0,112240.0,0.85723522]
[1756409229731,0.8377,112250.0,112240.0,0.85723522]
[1756409230339,0.001,112250.0,112240.0,1.33734884]
[1756409231241,0.001,112250.0,112240.0,2.15894884]
[1756409231438,0.04451583,112260.0,112250.0,0.0890784]
[1756409231740,0.05961583,112260.0,112250.0,0.60821202]
[1756409231939,0.03501583,112260.0,112250.0,0.60821202]
[1756409232332,0.03501583,112260.0,112250.0,0.1280984]
[1756409232533,0.03501583,112260.0,112250.0,0.60821202]
[1756409232941,0.01991583,112260.0,112250.0,0.60821202]
[1756409233342,0.01991583,112260.0,112250.0,0.60921202]
[1756409233934,0.01991583,112260.0,112250.0,0.85921202]
[1756409234235,0.35927567,112280.0,112250.0,0.85921202]
[1756409234236,0.71682,112280.0,112270.0,0.1280826]
[1756409234542,0.76682,112280.0,112270.0,0.60819622]
[1756409235137,0.0897,112280.0,112270.0,0.60819622]
[1756409235439,0.0651,112280.0,112270.0,0.62630305]
[1756409235647,0.0671,112280.0,112270.0,0.62630305]
[1756409235945,0.0681,112280.0,112270.0,0.62630305]
[1756409236440,0.003,112280.0,112270.0,0.87630305]
[1756409236838,0.002,112280.0,112270.0,0.94733434]
[1756409237242,0.002,112280.0,112270.0,0.87730305]
[1756409237745,0.86122,112300.0,112290.0,0.03902]
[1756409238043,0.91122,112300.0,112290.0,0.60818032]
[1756409239145,0.91222,112300.0,112290.0,0.60818032]
[1756409239343,0.88762,112300.0,112290.0,0.60818032]
[1756409239544,0.88862,112300.0,112290.0,0.60818032]
[1756409239743,0.91322,112300.0,112290.0,0.60818032]
[1756409240545,0.88862,112300.0,112290.0,0.60818032]
[1756409240742,0.83862,112300.0,112290.0,0.60818032]
[1756409241149,0.86322,112300.0,112290.0,0.62655093]
[1756409241743,0.86322,112300.0,112290.0,0.63559285]
[1756409241939,0.86222,112300.0,112290.0,0.63559285]
[1756409242145,0.86122,112300.0,112290.0,0.63659285]
[1756409243049,0.86122,112300.0,112290.0,0.62755093]
[1756409244850,0.83662,112300.0,112290.0,0.62755093]
[1756409245244,0.0151,112300.0,112290.0,0.62755093]
[1756409245444,0.0246,112310.0,112290.0,0.62755093]
[1756409245445,0.0246,112310.0,112300.0,0.0890388]
[1756409245642,0.0397,112310.0,112300.0,0.60817242]
[1756409246844,0.0407,112310.0,112300.0,0.60817242]
[1756409247757,0.0417,112310.0,112300.0,0.60817242]
[1756409253964,0.0171,112310.0,112300.0,0.60817242]
[1756409255961,0.002,112310.0,112300.0,0.60817242]
[1756409257764,0.001,112310.0,112300.0,0.60917242]
[1756409258257,0.0162,112320.0,112310.0,0.1049087]
[1756409258457,0.0162,112320.0,112310.0,0.62619646]
[1756409258950,0.03909,112320.0,112310.0,0.62619646]
[1756409259556,0.03909,112320.0,112310.0,0.62719646]
[1756409259754,0.0162,112320.0,112310.0,0.62719646]
[1756409259962,0.05904485,112330.0,112320.0,0.1278229]
[1756409260259,0.17904485,112330.0,112320.0,0.60793652]
[1756409260868,0.15615485,112330.0,112320.0,0.60793652]
[1756409261052,0.03715485,112330.0,112320.0,0.60793652]
[1756409261561,0.03815485,112330.0,112320.0,0.60793652]
[1756409262763,0.03715485,112330.0,112320.0,0.60793652]
[1756409262963,0.02095485,112330.0,112320.0,0.60893652]
[1756409263164,0.0172,112330.0,112320.0,0.60893652]
[1756409263765,0.001,112330.0,112320.0,0.6176758]
[1756409264156,0.01986855,112340.0,112330.0,0.111935]
[1756409264355,0.10986855,112340.0,112330.0,0.60792862]
[1756409264561,0.01986855,112340.0,112330.0,0.60792862]
[1756409264761,0.86037,112360.0,112350.0,0.1277991]
[1756409265062,1.24775384,112360.0,112350.0,0.60791272]
[1756409266052,1.25075384,112360.0,112350.0,0.60791272]
[1756409266757,1.33974504,112360.0,112350.0,0.60791272]
[1756409267467,1.34274504,112360.0,112350.0,0.1277991]
[1756409268164,1.34074504,112360.0,112350.0,0.60791272]
[1756409268362,1.25175384,112360.0,112350.0,0.60791272]
[1756409269557,1.25175384,112360.0,112350.0,0.1277991]
[1756409269771,1.25175384,112360.0,112350.0,0.60791272]
[1756409270158,0.07047384,112360.0,112350.0,0.60791272]
[1756409271061,0.04758384,112360.0,112350.0,0.60791272]
[1756409271268,0.07047384,112360.0,112350.0,0.60791272]
[1756409271667,0.06847384,112360.0,112350.0,0.60791272]
[1756409272065,0.06847384,112360.0,112350.0,0.61664533]
[1756409275965,0.06847384,112360.0,112350.0,0.60791272]
[1756409278572,0.04109,112360.0,112350.0,0.60791272]
[1756409284273,0.002,112360.0,112350.0,0.60791272]
[1756409285371,0.002,112360.0,112350.0,0.85791272]
[1756409285572,0.14929073,112390.0,112380.0,0.1054751]
[1756409285774,0.20667156,112390.0,112380.0,0.60984872]
[1756409286078,1.02751156,112390.0,112380.0,0.60984872]
[1756409286777,1.03662863,112390.0,112380.0,0.60984872]
[1756409287679,1.03962863,112390.0,112380.0,0.60984872]
[1756409287867,1.04162863,112390.0,112380.0,0.60984872]
[1756409288670,1.11228265,112390.0,112380.0,0.60984872]
[1756409290681,1.11228265,112390.0,112380.0,0.1297351]
[1756409293880,0.29144265,112390.0,112380.0,0.1297351]
[1756409294084,0.29144265,112390.0,112380.0,0.60984872]
[1756409294085,1.01411368,112390.0,112380.0,0.60984872]
[1756409294386,1.01404886,112390.0,112380.0,0.60984872]
[1756409294579,1.10301666,112390.0,112380.0,0.60984872]
[1756409296477,0.12263484,112390.0,112380.0,0.60984872]
[1756409296679,0.94335484,112390.0,112380.0,0.60984872]
[1756409300086,0.94335484,112390.0,112380.0,0.61896318]
[1756409303288,0.09531883,112390.0,112380.0,0.61896318]
[1756409303477,0.91599883,112390.0,112380.0,0.61896318]
[1756409303884,0.86644,112390.0,112380.0,0.61896318]
[1756409304492,0.86644,112390.0,112380.0,0.1297351]
[1756409304690,0.9554078,112390.0,112380.0,0.1054751]
[1756409304990,0.9554078,112390.0,112380.0,0.60984872]
[1756409309391,1.43552142,112390.0,112380.0,0.0889757]
[1756409313899,0.9554078,112390.0,112380.0,0.1042557]
[1756409314101,1.43552142,112390.0,112380.0,0.1042557]
[1756409314698,0.9554078,112390.0,112380.0,0.1042557]
[1756409316303,0.9552878,112390.0,112380.0,0.60739932]
[1756409316711,0.04576,112390.0,112380.0,0.60739932]
[1756409317008,0.86632,112390.0,112380.0,0.60739932]
[1756409317210,0.84153,112390.0,112380.0,0.60739932]
[1756409317812,0.02097,112390.0,112380.0,0.60739932]
[1756409318104,0.84149,112390.0,112380.0,0.60739932]
[1756409318310,0.86584,112390.0,112380.0,0.60739932]
[1756409319511,0.9548078,112390.0,112380.0,0.60739932]
[1756409320211,0.86584,112390.0,112380.0,0.60739932]
[1756409322512,0.9548078,112390.0,112380.0,0.60739932]
[1756409324502,0.8658,112390.0,112380.0,0.60739932]
[1756409324702,0.04532,112390.0,112380.0,0.60739932]
[1756409324903,0.8658,112390.0,112380.0,0.60739932]
[1756409325102,0.04532,112390.0,112380.0,0.85739932]
[1756409325307,0.8658,112390.0,112380.0,0.85739932]
[1756409325507,0.02097,112390.0,112380.0,0.85739932]
[1756409326211,0.04532,112390.0,112380.0,0.85739932]
[1756409326814,0.02014,112390.0,112380.0,0.85739932]
[1756409327010,0.86497,112390.0,112380.0,0.85739932]
[1756409331121,0.84062,112390.0,112380.0,0.85739932]
[1756409331317,0.86497,112390.0,112380.0,0.85739932]
[1756409333122,0.86497,112390.0,112380.0,0.60739932]
[1756409334719,0.9539378,112390.0,112380.0,0.58436932]
[1756409334918,0.86497,112390.0,112380.0,0.58436932]
[1756409335521,0.86497,112390.0,112380.0,0.60739932]
[1756409338915,0.9539377,112390.0,112380.0,0.1042557]
[1756409339115,0.9539377,112390.0,112380.0,0.60739932]
[1756409339426,0.86497,112390.0,112380.0,0.60739932]
[1756409341225,0.86477,112390.0,112380.0,0.60739932]
[1756409341525,0.86477,112390.0,112380.0,0.1275657]
[1756409341727,0.86473,112390.0,112380.0,0.60767932]
[1756409343123,0.9536977,112390.0,112380.0,0.1275657]
[1756409343323,0.9536977,112390.0,112380.0,0.60767932]
[1756409344230,0.86473,112390.0,112380.0,0.60767932]
[1756409347234,0.86473,112390.0,112380.0,0.1275657]
[1756409347435,0.86473,112390.0,112380.0,0.60767932]
[1756409349537,0.9536978,112390.0,112380.0,0.60767932]
[1756409349738,0.9536978,112390.0,112380.0,0.1042557]
[1756409350046,0.9536978,112390.0,112380.0,0.60767932]
[1756409355437,0.0889835,112370.0,112360.0,0.50697247]
[1756409355630,0.85686081,112370.0,112360.0,0.60303499]
[1756409355834,0.88174081,112370.0,112360.0,0.60303499]
[1756409356035,0.88174081,112370.0,112360.0,0.62634499]
[1756409356235,0.88174081,112370.0,112360.0,0.63533563]
[1756409356838,0.88274081,112370.0,112360.0,0.14623137]
[1756409357030,0.06258081,112370.0,112360.0,0.14623137]
[1756409357230,0.31862081,112370.0,112360.0,0.14623137]
[1756409357430,0.31862081,112370.0,112360.0,0.62634499]
[1756409359742,0.31862081,112370.0,112360.0,0.6350484]
[1756409366045,0.06258081,112370.0,112360.0,0.6350484]
[1756409366943,0.02120081,112370.0,112360.0,1.11516202]
[1756409368048,0.03770081,112370.0,112360.0,0.6350484]
[1756409370450,0.02120081,112370.0,112360.0,0.6350484]
[1756409370650,0.03707081,112370.0,112360.0,0.6350484]
[1756409373551,0.03707081,112370.0,112360.0,0.69394625]
[1756409373952,0.001,112370.0,112360.0,0.69394625]
[1756409374150,0.001,112370.0,112360.0,1.48295772]
[1756409374449,0.05895087,112400.0,112380.0,0.2016614]
[1756409374655,0.05895087,112400.0,112390.0,0.66730927]
[1756409375449,0.05895087,112400.0,112390.0,0.60724334]
[1756409376453,0.06095087,112400.0,112390.0,0.60724334]
[1756409376956,0.06495087,112400.0,112390.0,0.60724334]
[1756409377258,0.06495087,112400.0,112390.0,0.61610068]
[1756409377553,0.27566087,112400.0,112390.0,0.61610068]
[1756409377753,0.02566087,112400.0,112390.0,0.61610068]
[1756409377955,0.02566087,112400.0,112390.0,0.63439468]
[1756409378256,0.02366087,112400.0,112390.0,0.63439468]
[1756409378457,0.03953087,112400.0,112390.0,0.63439468]
[1756409378660,0.04253087,112400.0,112390.0,0.63439468]
[1756409380556,0.04253087,112400.0,112390.0,0.62553734]
[1756409380757,0.15491077,112400.0,112390.0,0.62553734]
[1756409381456,0.06595087,112400.0,112390.0,0.62553734]
[1756409382361,0.06595087,112400.0,112390.0,0.1465918]
[1756409382563,0.06595087,112400.0,112390.0,0.62553734]
[1756409385664,0.04253087,112400.0,112390.0,0.62553734]
[1756409386064,0.06595087,112400.0,112390.0,0.62553734]
[1756409387065,0.04253087,112400.0,112390.0,0.62553734]
[1756409388363,0.02666087,112400.0,112390.0,0.62553734]
[1756409392069,0.02366087,112400.0,112390.0,0.62553734]
[1756409392666,0.01966087,112400.0,112390.0,0.62553734]
[1756409394277,0.01966087,112400.0,112390.0,1.10448288]
[1756409394475,0.01966087,112400.0,112390.0,0.62553734]
[1756409394773,0.87923513,112420.0,112410.0,0.128282]
[1756409394973,0.87923513,112420.0,112410.0,0.60722754]
[1756409395674,0.05947513,112420.0,112410.0,0.60722754]
[1756409395875,0.87923513,112420.0,112410.0,0.60722754]
[1756409396264,0.87923513,112420.0,112410.0,0.62540969]
[1756409396265,0.003,112420.0,112410.0,0.62540969]
[1756409397272,0.005,112420.0,112410.0,0.62540969]
[1756409400773,0.04495,112420.0,112410.0,0.62540969]
[1756409402679,0.1338941,112420.0,112410.0,0.62540969]
[1756409403080,0.04495,112420.0,112410.0,0.62540969]
[1756409403281,0.3838941,112420.0,112410.0,0.62540969]
[1756409403482,0.29495,112420.0,112410.0,0.62540969]
[1756409405975,0.3838941,112420.0,112410.0,0.62540969]
[1756409408171,0.29495,112420.0,112410.0,0.62540969]
[1756409409986,0.3838941,112420.0,112410.0,0.62540969]
[1756409410290,0.3838941,112420.0,112410.0,0.14646415]
[1756409410582,0.1338941,112420.0,112410.0,0.14646415]
[1756409411476,0.9533341,112420.0,112410.0,0.14646415]
[1756409414891,0.9532941,112420.0,112410.0,0.62540969]
[1756409415288,0.04495,112420.0,112410.0,0.14646415]
[1756409415492,0.86435,112420.0,112410.0,0.14646415]
[1756409415784,0.02087,112420.0,112410.0,0.62540969]
[1756409415988,0.82436,112420.0,112410.0,0.62540969]
[1756409416184,0.005,112420.0,112410.0,0.62540969]
[1756409418995,0.005,112420.0,112410.0,0.87540969]
[1756409419400,0.01989359,112430.0,112420.0,0.1283141]
[1756409419584,0.01989359,112430.0,112420.0,0.60725964]
[1756409420297,0.01989359,112430.0,112420.0,0.1283141]
[1756409420486,0.02289359,112430.0,112420.0,0.60725964]
[1756409420996,0.02289359,112430.0,112420.0,0.1283141]
[1756409421189,0.02189359,112430.0,112420.0,0.60725964]
[1756409421387,0.02289359,112430.0,112420.0,0.60725964]
[1756409422292,0.02289359,112430.0,112420.0,0.61610187]
[1756409429102,0.02189359,112430.0,112420.0,0.61710187]
[1756409429501,0.03763359,112430.0,112420.0,0.13815633]
[1756409429697,0.06171359,112430.0,112420.0,0.1293141]
[1756409429904,0.06171359,112430.0,112420.0,0.60825964]
[1756409430405,0.05971359,112430.0,112420.0,0.1293141]
[1756409430598,0.05971359,112430.0,112420.0,0.60825964]
[1756409432408,0.88647359,112430.0,112420.0,0.60825964]
[1756409433708,0.97540969,112430.0,112420.0,0.60825964]
[1756409433903,1.22540969,112430.0,112420.0,0.60825964]
[1756409434098,1.22540969,112430.0,112420.0,0.1293141]
[1756409434305,1.22540969,112430.0,112420.0,0.60825964]
[1756409435006,0.39864969,112430.0,112420.0,0.60825964]
[1756409435210,0.30971359,112430.0,112420.0,0.60825964]
[1756409435511,1.13651359,112430.0,112420.0,0.60825964]
[1756409436010,0.05971359,112430.0,112420.0,0.60825964]
[1756409436210,0.84665359,112430.0,112420.0,0.60825964]
[1756409436812,0.86321359,112430.0,112420.0,0.60825964]
[1756409437410,0.88733359,112430.0,112420.0,0.60825964]
[1756409437812,0.86321359,112430.0,112420.0,0.60825964]
[1756409438310,0.88733359,112430.0,112420.0,0.60825964]
[1756409438506,0.88733359,112430.0,112420.0,0.1293141]
[1756409438812,0.88733359,112430.0,112420.0,0.60825964]
[1756409440816,0.06057359,112430.0,112420.0,0.60825964]
[1756409441008,0.03645359,112430.0,112420.0,0.60825964]
[1756409442705,0.03645359,112430.0,112420.0,0.1293141]
[1756409442909,0.06057359,112430.0,112420.0,0.60825964]
[1756409444814,0.03645359,112430.0,112420.0,0.60825964]
[1756409445009,0.01989359,112430.0,112420.0,0.60825964]
[1756409445403,0.01989359,112430.0,112420.0,0.85825964]
[1756409447317,0.02000486,112450.0,112440.0,0.0161]
[1756409447616,0.02000486,112450.0,112440.0,1.08577928]
[1756409449412,0.02100486,112450.0,112440.0,1.08577928]
[1756409449920,0.02200486,112450.0,112440.0,1.08577928]
[1756409450322,0.02100486,112450.0,112440.0,1.08577928]
[1756409451519,0.02100486,112450.0,112440.0,1.91121928]
[1756409451726,0.001,112450.0,112440.0,1.91121928]
[1756409451917,0.001,112450.0,112440.0,2.16121928]
[1756409452612,0.84972,112470.0,112450.0,0.0889187]
[1756409452814,0.86628,112470.0,112460.0,0.51790554]
[1756409453524,0.84216,112470.0,112460.0,0.60681794]
[1756409453919,0.84516,112470.0,112460.0,0.60681794]
[1756409454120,0.86928,112470.0,112460.0,0.60681794]
[1756409454315,0.84516,112470.0,112460.0,0.60681794]
[1756409454520,0.86928,112470.0,112460.0,0.60681794]
[1756409455428,0.86928,112470.0,112460.0,0.67712931]
[1756409455723,0.86828,112470.0,112460.0,0.67712931]
[1756409456032,0.87028,112470.0,112460.0,0.67712931]
[1756409457728,0.87028,112470.0,112460.0,0.68590107]
[1756409458224,0.87028,112470.0,112460.0,0.67712931]
[1756409459531,0.87028,112470.0,112460.0,0.65426931]
[1756409459732,0.87028,112470.0,112460.0,0.67712931]
[1756409461630,0.87028,112470.0,112460.0,0.19818377]
[1756409461932,0.87028,112470.0,112460.0,0.67712931]
[1756409463131,0.04468,112470.0,112460.0,0.67712931]
[1756409463333,0.86908,112470.0,112460.0,0.67712931]
[1756409466829,0.04468,112470.0,112460.0,0.67712931]
[1756409467028,0.86824,112470.0,112460.0,0.67712931]
[1756409467836,0.86824,112470.0,112460.0,0.19818377]
[1756409468134,0.86824,112470.0,112460.0,0.65426931]
[1756409468834,0.86824,112470.0,112460.0,0.67792931]
[1756409469129,0.86824,112470.0,112460.0,0.65426931]
[1756409469333,1.68609034,112470.0,112460.0,0.0889127]
[1756409469832,1.2071448,112470.0,112460.0,0.0889127]
[1756409471429,1.68609034,112470.0,112460.0,0.0889127]
[1756409474032,0.3835848,112470.0,112460.0,0.0889127]
[1756409474236,1.68553034,112470.0,112460.0,0.0889127]
[1756409477336,0.1274327,112460.0,112450.0,0.0889206]
[1756409477531,0.60637824,112460.0,112450.0,0.0889206]
[1756409477934,0.9505527,112460.0,112450.0,0.0889206]
[1756409478136,1.42949824,112460.0,112450.0,0.0889206]
[1756409478535,1.43049824,112460.0,112450.0,0.0889206]
[1756409479135,1.68049824,112460.0,112450.0,0.0889206]
[1756409479432,0.088927,112450.0,112440.0,0.0889245]
[1756409479641,0.60639254,112450.0,112440.0,0.0889245]
[1756409479943,0.60639254,112450.0,112440.0,0.1043245]
[1756409479944,0.127447,112450.0,112440.0,0.1043245]
[1756409480435,0.127447,112450.0,112440.0,0.0889245]
[1756409480742,0.127447,112450.0,112440.0,0.1043245]
[1756409481537,0.127447,112450.0,112440.0,0.0889245]
[1756409482241,0.127447,112450.0,112440.0,0.1043245]
[1756409482642,0.61548566,112450.0,112440.0,0.1043245]
[1756409482837,0.61548566,112450.0,112440.0,0.0889245]
[1756409483041,0.03852,112430.0,112420.0,0.62501257]
[1756409483244,0.86116,112430.0,112420.0,0.60694264]
[1756409483437,0.88092732,112430.0,112420.0,0.60694264]
[1756409484042,0.88092732,112430.0,112420.0,0.1279971]
[1756409484043,0.96986372,112430.0,112420.0,0.1279971]
[1756409484247,1.44880926,112430.0,112420.0,0.1299971]
[1756409484748,1.44880926,112430.0,112420.0,0.0174]
[1756409485047,1.44880926,112430.0,112420.0,0.002]
[1756409485249,1.44880926,112430.0,112420.0,0.0909443]
[1756409485448,1.44928926,112430.0,112420.0,0.1063443]
[1756409485948,1.45028926,112430.0,112420.0,0.1053443]
[1756409486540,1.52135926,112430.0,112420.0,0.1053443]
[1756409486847,1.52135926,112430.0,112420.0,0.1043443]
[1756409487052,1.45128926,112430.0,112420.0,0.1043443]
[1756409487651,0.1274643,112420.0,112410.0,0.12253145]
[1756409487849,0.60640984,112420.0,112410.0,0.12253145]
[1756409488347,0.1274643,112420.0,112410.0,0.12253145]
[1756409488748,0.60640984,112420.0,112410.0,0.12253145]
[1756409489042,0.1274643,112420.0,112410.0,0.12253145]
[1756409489247,1.42944984,112420.0,112410.0,0.12253145]
[1756409489947,1.42952984,112420.0,112410.0,0.12253145]
[1756409490151,1.42944984,112420.0,112410.0,0.14573145]
[1756409490949,1.42944984,112420.0,112410.0,0.12253145]
[1756409491446,0.60640984,112420.0,112410.0,0.12253145]
[1756409491641,1.42932984,112420.0,112410.0,0.14573145]
[1756409492552,0.60640984,112420.0,112410.0,0.14573145]
[1756409493052,1.42908984,112420.0,112410.0,0.14573145]
[1756409493448,0.60640984,112420.0,112410.0,0.14573145]
[1756409493852,1.42892984,112420.0,112410.0,0.14573145]
[1756409494356,0.9499843,112420.0,112410.0,0.14573145]
[1756409497958,0.1274643,112420.0,112410.0,0.12253145]
[1756409498150,0.1272622,112410.0,112400.0,0.1283001]
[1756409498459,0.60620774,112410.0,112400.0,0.01614]
[1756409498851,0.60620774,112410.0,112400.0,0.0889601]
[1756409499058,0.60620774,112410.0,112390.0,0.62517661]
[1756409499059,0.1272701,112400.0,112390.0,0.62517661]
[1756409499252,0.9491501,112400.0,112390.0,0.62517661]
[1756409499453,0.9481501,112400.0,112390.0,0.62517661]
[1756409500951,0.9481501,112400.0,112390.0,0.14623107]
[1756409501351,0.9481501,112400.0,112390.0,0.03406897]
[1756409501652,1.42709564,112400.0,112390.0,0.03406897]
[1756409501855,1.42705564,112400.0,112390.0,0.12303697]
[1756409502060,1.42701564,112400.0,112390.0,0.12303697]
[1756409502359,1.42701564,112400.0,112390.0,0.03406897]
[1756409502560,1.42701564,112400.0,112390.0,0.12303697]
[1756409504560,0.9480701,112400.0,112390.0,0.12303697]
[1756409504761,1.42701564,112400.0,112390.0,0.12303697]
[1756409505457,1.42701564,112400.0,112390.0,0.10689697]
[1756409505662,1.67701564,112400.0,112390.0,0.01792897]
[1756409505962,1.68580523,112400.0,112390.0,0.01792897]
[1756409506859,1.68580523,112400.0,112390.0,0.10689697]
[1756409507262,1.71320091,112400.0,112390.0,0.10689697]
[1756409508561,1.68580523,112400.0,112390.0,0.01792897]
[1756409508865,1.71320326,112400.0,112390.0,0.01792897]
[1756409509066,0.127286,112380.0,112370.0,0.19950515]
[1756409509256,0.948686,112380.0,112370.0,0.1283189]
[1756409510158,0.948686,112380.0,112370.0,0.1313189]
[1756409510360,0.127286,112380.0,112370.0,0.1313189]
[1756409510664,0.949366,112380.0,112370.0,0.1313189]
[1756409511372,0.949366,112380.0,112370.0,0.1323189]
[1756409511960,0.949286,112380.0,112370.0,0.1323189]
[1756409513369,0.03831,112380.0,112370.0,0.1323189]
[1756409513570,0.86083,112380.0,112370.0,0.1323189]
[1756409513870,0.86083,112380.0,112370.0,0.61126444]
[1756409514057,0.86083,112380.0,112370.0,0.1323189]
[1756409514262,0.03831,112380.0,112370.0,0.61126444]
[1756409514467,0.86123,112380.0,112370.0,0.61126444]
[1756409515270,0.03831,112380.0,112370.0,0.61126444]
[1756409515471,0.71123,112380.0,112370.0,0.61126444]
[1756409518771,0.03831,112380.0,112370.0,0.61126444]
[1756409519171,0.71011,112380.0,112370.0,0.61126444]
[1756409520969,0.03831,112380.0,112370.0,0.61126444]
[1756409521974,0.03831,112380.0,112370.0,0.1323189]
[1756409522174,0.03831,112380.0,112370.0,0.61126444]
[1756409522971,0.04044,112390.0,112380.0,0.128056]
[1756409523177,1.14657544,112400.0,112390.0,0.1280481]
[1756409523371,1.15439643,112400.0,112390.0,0.60699364]
[1756409523579,1.15439643,112400.0,112390.0,0.62475778]
[1756409523970,1.24335653,112400.0,112390.0,0.62475778]
[1756409526079,1.15439643,112400.0,112390.0,0.62475778]
[1756409526481,0.29123643,112400.0,112390.0,0.62475778]
[1756409526775,1.10247,112400.0,112390.0,0.62475778]
[1756409527076,1.12768,112400.0,112390.0,0.62475778]
[1756409527278,1.2166401,112400.0,112390.0,0.14581224]
[1756409527472,1.2166401,112400.0,112390.0,0.62475778]
[1756409528480,1.2156401,112400.0,112390.0,0.62475778]
[1756409528880,1.2156401,112400.0,112390.0,0.62575778]
[1756409529885,1.12668,112400.0,112390.0,0.62575778]
[1756409532275,0.02421,112410.0,112390.0,0.87575778]
[1756409532478,0.02421,112410.0,112400.0,0.60698564]
[1756409532479,0.86356,112410.0,112400.0,0.60698564]
[1756409533270,0.86356,112410.0,112400.0,0.61608008]
[1756409533888,0.86356,112410.0,112400.0,0.60698564]
[1756409534187,0.9525122,112410.0,112400.0,0.1045601]
[1756409534480,0.9525122,112410.0,112400.0,0.1280401]
[1756409535177,0.1294001,112400.0,112390.0,0.62575198]
[1756409535582,0.1294001,112400.0,112390.0,0.62475198]
[1756409536275,0.04044,112400.0,112390.0,0.62675198]
[1756409536784,0.04044,112400.0,112390.0,0.62475198]
[1756409541788,0.1294002,112400.0,112390.0,0.62475198]
[1756409541987,0.1294002,112400.0,112390.0,0.14580644]
[1756409542183,0.60834574,112400.0,112390.0,0.1045681]
[1756409542485,1.43178574,112400.0,112390.0,0.1280481]
[1756409544696,1.43278574,112400.0,112390.0,0.1280481]
[1756409544995,0.9538402,112400.0,112390.0,0.1280481]
[1756409545196,1.43278574,112400.0,112390.0,0.1280481]
[1756409545705,1.43278574,112400.0,112390.0,0.1045681]
[1756409546402,1.68278574,112400.0,112390.0,0.0889681]
[1756409546593,0.105198,112390.0,112380.0,0.1280497]
[1756409546792,0.129408,112390.0,112380.0,0.1280497]
[1756409546995,0.952808,112390.0,112380.0,0.60699524]
[1756409547195,0.952808,112390.0,112380.0,0.1280497]
[1756409547393,0.129408,112390.0,112380.0,0.1280497]
[1756409547591,0.86384,112390.0,112380.0,0.1280497]
[1756409548303,0.952808,112390.0,112380.0,0.1280497]
[1756409548695,0.952808,112390.0,112380.0,0.60699524]
[1756409549096,0.952808,112390.0,112380.0,0.1290497]
[1756409550605,0.96182319,112390.0,112380.0,0.1290497]
[1756409551503,0.129408,112390.0,112380.0,0.1290497]
[1756409551702,0.844568,112390.0,112380.0,0.60799524]
[1756409553004,0.129408,112390.0,112380.0,0.60799524]
[1756409553199,0.953408,112390.0,112380.0,0.60799524]
[1756409554710,0.9622992,112390.0,112380.0,0.1290497]
[1756409554910,0.9622992,112390.0,112380.0,0.60799524]
[1756409556193,0.86424,112390.0,112380.0,0.60799524]
[1756409556599,0.9532081,112390.0,112380.0,0.60799524]
[1756409558802,0.04044,112390.0,112380.0,0.60799524]
[1756409559008,0.86396,112390.0,112380.0,0.60799524]
[1756409559603,0.952928,112390.0,112380.0,0.60799524]
[1756409561010,0.129408,112390.0,112380.0,0.60799524]
[1756409561211,0.952608,112390.0,112380.0,0.60799524]
[1756409563210,0.952288,112390.0,112380.0,0.60799524]
[1756409564511,0.86332,112390.0,112380.0,0.60799524]
[1756409565812,1.43123364,112390.0,112380.0,0.0899697]
[1756409566314,1.68123364,112390.0,112380.0,0.001]
[1756409566515,2.27503364,112390.0,112380.0,0.001]
[1756409568416,0.03813,112370.0,112360.0,0.1047759]
[1756409568618,1.42962344,112370.0,112360.0,0.1047759]
[1756409568815,0.9506779,112370.0,112360.0,0.1047759]
[1756409569016,0.9506779,112370.0,112360.0,0.1278759]
[1756409569517,0.9504379,112370.0,112360.0,0.1278759]
[1756409570020,0.9504379,112370.0,112360.0,0.1298759]
[1756409570719,0.9504379,112370.0,112360.0,0.1328759]
[1756409571621,1.02194448,112370.0,112360.0,0.1328759]
[1756409573621,1.02194448,112370.0,112360.0,0.1097759]
[1756409574120,1.75089002,112370.0,112360.0,0.005]
[1756409574516,1.75089002,112370.0,112360.0,0.093992]
[1756409576318,1.74989002,112370.0,112360.0,0.093992]
[1756409576725,0.92757002,112370.0,112360.0,0.093992]
[1756409577120,1.27078448,112370.0,112360.0,0.109782]
[1756409577627,1.74973002,112370.0,112360.0,0.109782]
[1756409578428,0.92757002,112370.0,112360.0,0.109782]
[1756409578622,1.74949002,112370.0,112360.0,0.109782]
[1756409579918,1.02042068,112370.0,112360.0,0.61182754]
[1756409581025,1.02030068,112370.0,112360.0,0.61182754]
[1756409583616,1.02030068,112370.0,112360.0,0.109782]